[Event "*** Titled Tuesday Blitz"]
[Site "Chess.com"]
[Date "2020.04.21"]
[Round "6"]
[White "Problematique_99"]
[Black "Roenko_Artur"]
[Result "1/2-1/2"]
[WhiteElo "2513"]
[BlackElo "2281"]
[TimeControl "180+1"]
[EndTime "11:12:39 PDT"]
[Termination "Game drawn by repetition"]

1. e4 {[%clk 0:03:00.9]} 1... e6 {[%clk 0:02:59.9]} 2. d4 {[%clk 0:03:00.4]}
2... d5 {[%clk 0:03:00.4]} 3. exd5 {[%clk 0:03:01.3]} 3... exd5 {[%clk
0:03:01.2]} 4. Nf3 {[%clk 0:03:02.1]} 4... Bd6 {[%clk 0:03:00.4]} 5. c4 {[%clk
0:03:01.5]} 5... c6 {[%clk 0:02:54.8]} 6. Nc3 {[%clk 0:03:01.6]} 6... Nf6 {[%clk
0:02:54.1]} 7. cxd5 {[%clk 0:02:50.8]} 7... Nxd5 {[%clk 0:02:51]} 8. Be2 {[%clk
0:02:48]} 8... O-O {[%clk 0:02:48.3]} 9. O-O {[%clk 0:02:48.1]} 9... Bg4 {[%clk
0:02:42.9]} 10. Qb3 {[%clk 0:02:46.1]} 10... Qd7 {[%clk 0:02:00.2]} 11. Ne4
{[%clk 0:02:15.9]} 11... Re8 {[%clk 0:01:31.1]} 12. Nxd6 {[%clk 0:01:55.2]}
12... Qxd6 {[%clk 0:01:31.1]} 13. Bc4 {[%clk 0:01:52]} 13... Bxf3 {[%clk
0:01:23.7]} 14. Qxf3 {[%clk 0:01:52.9]} 14... b5 {[%clk 0:01:18.6]} 15. Bb3
{[%clk 0:01:49.9]} 15... Nd7 {[%clk 0:01:16.4]} 16. Bg5 {[%clk 0:01:41.6]} 16...
N7f6 {[%clk 0:01:14.3]} 17. Rfe1 {[%clk 0:01:38.2]} 17... Qb4 {[%clk 0:01:09.6]}
18. Rxe8+ {[%clk 0:01:30.7]} 18... Rxe8 {[%clk 0:01:10.5]} 19. h3 {[%clk
0:01:26]} 19... Qxd4 {[%clk 0:01:01.9]} 20. Rd1 {[%clk 0:01:16.1]} 20... Qxb2
{[%clk 0:00:50.2]} 21. Bxf6 {[%clk 0:01:15.1]} 21... Qxf6 {[%clk 0:00:33.3]} 22.
Bxd5 {[%clk 0:01:14.6]} 22... cxd5 {[%clk 0:00:33.7]} 23. Qxf6 {[%clk
0:01:08.2]} 23... gxf6 {[%clk 0:00:33.4]} 24. Rxd5 {[%clk 0:01:09.1]} 24... a6
{[%clk 0:00:31.3]} 25. Rd6 {[%clk 0:01:08]} 25... Re6 {[%clk 0:00:30.8]} 26.
Rd8+ {[%clk 0:01:06.6]} 26... Kg7 {[%clk 0:00:30.6]} 27. Kf1 {[%clk 0:01:06.3]}
27... Rc6 {[%clk 0:00:29.5]} 28. Rd2 {[%clk 0:01:04.1]} 28... Rc1+ {[%clk
0:00:29.6]} 29. Ke2 {[%clk 0:01:04.2]} 29... Rc4 {[%clk 0:00:24.7]} 30. Kd3
{[%clk 0:01:02.3]} 30... Ra4 {[%clk 0:00:24]} 31. Kc3 {[%clk 0:00:58.3]} 31...
f5 {[%clk 0:00:24.1]} 32. Kb3 {[%clk 0:00:55.9]} 32... Kg6 {[%clk 0:00:23.7]}
33. Rd6+ {[%clk 0:00:54.4]} 33... f6 {[%clk 0:00:23.8]} 34. g3 {[%clk
0:00:50.5]} 34... h5 {[%clk 0:00:23.6]} 35. h4 {[%clk 0:00:47.8]} 35... a5
{[%clk 0:00:18.1]} 36. Rd5 {[%clk 0:00:46]} 36... Rb4+ {[%clk 0:00:18.1]} 37.
Kc3 {[%clk 0:00:46.5]} 37... Rb1 {[%clk 0:00:16.6]} 38. a3 {[%clk 0:00:42.3]}
38... a4 {[%clk 0:00:15.4]} 39. Rc5 {[%clk 0:00:40.7]} 39... Rb3+ {[%clk
0:00:15.5]} 40. Kc2 {[%clk 0:00:40.3]} 40... Rxa3 {[%clk 0:00:15.5]} 41. Rxb5
{[%clk 0:00:40.7]} 41... Ra2+ {[%clk 0:00:15.6]} 42. Kd3 {[%clk 0:00:41.1]}
42... Rxf2 {[%clk 0:00:15]} 43. Ke3 {[%clk 0:00:41.7]} 43... Ra2 {[%clk
0:00:13.2]} 44. Ra5 {[%clk 0:00:42]} 44... Ra3+ {[%clk 0:00:13.4]} 45. Kf4
{[%clk 0:00:40.8]} 45... Ra1 {[%clk 0:00:11.9]} 46. Kf3 {[%clk 0:00:41.1]} 46...
a3 {[%clk 0:00:11.2]} 47. Kg2 {[%clk 0:00:41.6]} 47... a2 {[%clk 0:00:11.2]} 48.
Kh2 {[%clk 0:00:41.8]} 48... Kf7 {[%clk 0:00:09.9]} 49. Ra6 {[%clk 0:00:40.9]}
49... Ke7 {[%clk 0:00:09.6]} 50. Kg2 {[%clk 0:00:41.2]} 50... Kd7 {[%clk
0:00:09.3]} 51. Kh2 {[%clk 0:00:41.6]} 51... Kc7 {[%clk 0:00:09.5]} 52. Kg2
{[%clk 0:00:41.9]} 52... Kb7 {[%clk 0:00:09.8]} 53. Ra3 {[%clk 0:00:42.1]} 53...
Kb6 {[%clk 0:00:10]} 54. Kh2 {[%clk 0:00:41.7]} 54... Kb5 {[%clk 0:00:10.3]} 55.
Kg2 {[%clk 0:00:42]} 55... Kb4 {[%clk 0:00:10.6]} 56. Ra8 {[%clk 0:00:42.6]}
56... Kb3 {[%clk 0:00:08.6]} 57. Rb8+ {[%clk 0:00:42.1]} 57... Kc3 {[%clk
0:00:08.6]} 58. Ra8 {[%clk 0:00:41.9]} 58... Kd3 {[%clk 0:00:07.5]} 59. Rd8+
{[%clk 0:00:35.5]} 59... Ke4 {[%clk 0:00:07.1]} 60. Re8+ {[%clk 0:00:35.4]}
60... Kd5 {[%clk 0:00:06.9]} 61. Rd8+ {[%clk 0:00:35.7]} 61... Ke6 {[%clk
0:00:06.9]} 62. Ra8 {[%clk 0:00:35.5]} 62... f4 {[%clk 0:00:06.5]} 63. gxf4
{[%clk 0:00:33.2]} 63... Kf5 {[%clk 0:00:06.5]} 64. Ra4 {[%clk 0:00:30.9]} 64...
Kg4 {[%clk 0:00:06.5]} 65. Kh2 {[%clk 0:00:30.1]} 65... Kf3 {[%clk 0:00:05.3]}
66. Ra3+ {[%clk 0:00:26.5]} 66... Kxf4 {[%clk 0:00:05.2]} 67. Ra4+ {[%clk
0:00:26.4]} 67... Kf5 {[%clk 0:00:05.2]} 68. Ra5+ {[%clk 0:00:26.6]} 68... Kg4
{[%clk 0:00:05.5]} 69. Ra4+ {[%clk 0:00:27.5]} 69... Kf5 {[%clk 0:00:05.3]} 70.
Ra5+ {[%clk 0:00:27.9]} 70... Kg6 {[%clk 0:00:05.6]} 71. Ra4 {[%clk 0:00:28.2]}
71... f5 {[%clk 0:00:05.5]} 72. Ra6+ {[%clk 0:00:28.2]} 72... Kf7 {[%clk
0:00:05.7]} 73. Kg2 {[%clk 0:00:26.6]} 73... Ke7 {[%clk 0:00:06.1]} 74. Kh2
{[%clk 0:00:27]} 74... Kd7 {[%clk 0:00:06.6]} 75. Kg2 {[%clk 0:00:27.5]} 75...
Kc7 {[%clk 0:00:07.2]} 76. Kh2 {[%clk 0:00:28.4]} 76... Kb7 {[%clk 0:00:07.7]}
77. Ra3 {[%clk 0:00:29.2]} 77... Kc6 {[%clk 0:00:07.6]} 78. Ra5 {[%clk
0:00:28.6]} 78... Kb6 {[%clk 0:00:07.1]} 79. Ra3 {[%clk 0:00:28.4]} 79... Kb5
{[%clk 0:00:07.2]} 80. Ra8 {[%clk 0:00:27.9]} 80... Kc4 {[%clk 0:00:06.9]} 81.
Ra4+ {[%clk 0:00:27.7]} 81... Kd3 {[%clk 0:00:06.2]} 82. Kg2 {[%clk 0:00:27.8]}
82... Ke3 {[%clk 0:00:04.9]} 83. Ra3+ {[%clk 0:00:28.1]} 83... Ke4 {[%clk
0:00:04]} 84. Ra4+ {[%clk 0:00:29]} 84... Ke3 {[%clk 0:00:04.2]} 85. Ra3+ {[%clk
0:00:29.1]} 85... Kd4 {[%clk 0:00:04.6]} 86. Ra4+ {[%clk 0:00:29.6]} 86... Kc3
{[%clk 0:00:04.8]} 87. Ra8 {[%clk 0:00:29.2]} 87... f4 {[%clk 0:00:04.8]} 88.
Rc8+ {[%clk 0:00:28.1]} 88... Kb3 {[%clk 0:00:04.7]} 89. Rb8+ {[%clk 0:00:28.3]}
89... Kc4 {[%clk 0:00:05.1]} 90. Rc8+ {[%clk 0:00:28.6]} 90... Kd5 {[%clk
0:00:05.5]} 91. Rd8+ {[%clk 0:00:28.9]} 91... Ke5 {[%clk 0:00:05.6]} 92. Ra8
{[%clk 0:00:28.3]} 92... Kf5 {[%clk 0:00:05.4]} 93. Ra5+ {[%clk 0:00:27.3]}
93... Kg4 {[%clk 0:00:05.2]} 94. Kh2 {[%clk 0:00:27.3]} 94... Kxh4 {[%clk
0:00:05.2]} 95. Kg2 {[%clk 0:00:28.2]} 95... Kg4 {[%clk 0:00:05.7]} 96. Kh2
{[%clk 0:00:28.5]} 96... h4 {[%clk 0:00:06.2]} 97. Kg2 {[%clk 0:00:28.2]} 97...
h3+ {[%clk 0:00:06.4]} 98. Kh2 {[%clk 0:00:28.4]} 98... Kh4 {[%clk 0:00:06.8]}
99. Ra4 {[%clk 0:00:27.8]} 99... Kg4 {[%clk 0:00:06]} 100. Ra3 {[%clk
0:00:22.5]} 100... Kg5 {[%clk 0:00:04.9]} 101. Ra5+ {[%clk 0:00:18.1]} 101...
Kf6 {[%clk 0:00:04.6]} 102. Ra3 {[%clk 0:00:15.2]} 102... f3 {[%clk 0:00:04.3]}
103. Rxf3+ {[%clk 0:00:14.2]} 103... Ke5 {[%clk 0:00:04.9]} 104. Ra3 {[%clk
0:00:14.1]} 104... Kd5 {[%clk 0:00:03.8]} 105. Ra8 {[%clk 0:00:14]} 105... Kc5
{[%clk 0:00:03.8]} 106. Rc8+ {[%clk 0:00:12.6]} 106... Kb6 {[%clk 0:00:03.8]}
107. Ra8 {[%clk 0:00:11.7]} 107... Kc6 {[%clk 0:00:03.9]} 108. Ra3 {[%clk
0:00:10.4]} 108... Kb5 {[%clk 0:00:03.8]} 109. Ra8 {[%clk 0:00:10.5]} 109... Kb4
{[%clk 0:00:04]} 110. Rb8+ {[%clk 0:00:10.7]} 110... Kc5 {[%clk 0:00:04.2]} 111.
Rc8+ {[%clk 0:00:10.8]} 111... Kd6 {[%clk 0:00:04.4]} 112. Ra8 {[%clk 0:00:11]}
112... Kc7 {[%clk 0:00:04.5]} 113. Ra3 {[%clk 0:00:10.7]} 113... Kb7 {[%clk
0:00:04.8]} 114. Rb3+ {[%clk 0:00:10.2]} 114... Kc6 {[%clk 0:00:04.7]} 115. Ra3
{[%clk 0:00:11.1]} 115... Kd5 {[%clk 0:00:05.1]} 116. Ra8 {[%clk 0:00:11.2]}
116... Kc4 {[%clk 0:00:05.2]} 117. Rc8+ {[%clk 0:00:10.8]} 117... Kd3 {[%clk
0:00:05.5]} 118. Rd8+ {[%clk 0:00:10.5]} 118... Kc2 {[%clk 0:00:05.8]} 119. Rc8+
{[%clk 0:00:10.4]} 119... Kb3 {[%clk 0:00:06]} 120. Rb8+ {[%clk 0:00:10.6]}
120... Kc4 {[%clk 0:00:06.1]} 121. Ra8 {[%clk 0:00:11.1]} 121... Kd4 {[%clk
0:00:05.5]} 122. Rd8+ {[%clk 0:00:10.9]} 122... Kc4 {[%clk 0:00:05.9]} 123. Rc8+
{[%clk 0:00:11.1]} 123... Kd4 {[%clk 0:00:06.4]} 124. Rd8+ {[%clk 0:00:11.2]}
124... Ke3 {[%clk 0:00:06.6]} 125. Ra8 {[%clk 0:00:11.1]} 125... Kf2 {[%clk
0:00:06.6]} 126. Rf8+ {[%clk 0:00:10.7]} 126... Ke3 {[%clk 0:00:06.4]} 127. Ra8
{[%clk 0:00:10.8]} 127... Kd4 {[%clk 0:00:06.8]} 128. Rd8+ {[%clk 0:00:10.5]}
1/2-1/2

[Event "*** Titled Tuesday Blitz"]
[Site "Chess.com"]
[Date "2020.04.21"]
[Round "7"]
[White "lupta_robin"]
[Black "TastyFrenchFries"]
[Result "1-0"]
[WhiteElo "2534"]
[BlackElo "2381"]
[TimeControl "180+1"]
[EndTime "11:16:47 PDT"]
[Termination "lupta_robin won by resignation"]

1. e4 {[%clk 0:03:00.9]} 1... e6 {[%clk 0:02:42.3]} 2. d4 {[%clk 0:02:56.7]}
2... d5 {[%clk 0:02:42.1]} 3. Nd2 {[%clk 0:02:56.8]} 3... Nf6 {[%clk 0:02:39.7]}
4. e5 {[%clk 0:02:56.9]} 4... Nfd7 {[%clk 0:02:40.3]} 5. Ngf3 {[%clk 0:02:57.2]}
5... c5 {[%clk 0:02:40.5]} 6. c3 {[%clk 0:02:56.3]} 6... Nc6 {[%clk 0:02:41]} 7.
Bd3 {[%clk 0:02:56.7]} 7... Be7 {[%clk 0:02:40.6]} 8. O-O {[%clk 0:02:55.9]}
8... g5 {[%clk 0:02:41.1]} 9. dxc5 {[%clk 0:02:41.6]} 9... Ndxe5 {[%clk
0:02:40.6]} 10. Nxe5 {[%clk 0:02:40.2]} 10... Nxe5 {[%clk 0:02:41.5]} 11. Bb5+
{[%clk 0:02:40.7]} 11... Bd7 {[%clk 0:02:41.4]} 12. Bxd7+ {[%clk 0:02:39.1]}
12... Nxd7 {[%clk 0:02:42.3]} 13. b4 {[%clk 0:02:38.8]} 13... O-O {[%clk
0:02:37.8]} 14. Nf3 {[%clk 0:02:32.2]} 14... f5 {[%clk 0:02:32.2]} 15. Re1
{[%clk 0:02:30.7]} 15... g4 {[%clk 0:02:28.3]} 16. Nd4 {[%clk 0:02:29.9]} 16...
e5 {[%clk 0:02:22.5]} 17. Ne6 {[%clk 0:02:25.8]} 17... Qe8 {[%clk 0:02:21.7]}
1-0

[Event "*** Titled Tuesday Blitz"]
[Site "Chess.com"]
[Date "2020.04.21"]
[Round "7"]
[White "MichailovM"]
[Black "DonBroca"]
[Result "1-0"]
[WhiteElo "2289"]
[BlackElo "2105"]
[TimeControl "180+1"]
[EndTime "11:16:47 PDT"]
[Termination "MichailovM won by resignation"]

1. e4 {[%clk 0:03:00.7]} 1... c5 {[%clk 0:02:59.6]} 2. Nf3 {[%clk 0:03:01]} 2...
d6 {[%clk 0:03:00]} 3. d4 {[%clk 0:03:01.6]} 3... cxd4 {[%clk 0:03:00.5]} 4.
Nxd4 {[%clk 0:03:02.5]} 4... Nf6 {[%clk 0:03:00.2]} 5. Nc3 {[%clk 0:03:02.6]}
5... g6 {[%clk 0:03:00.7]} 6. Be3 {[%clk 0:03:02.9]} 6... Bg7 {[%clk 0:03:01.6]}
7. f3 {[%clk 0:03:03.8]} 7... O-O {[%clk 0:03:01.4]} 8. Qd2 {[%clk 0:03:04.7]}
8... Nc6 {[%clk 0:03:02]} 9. O-O-O {[%clk 0:03:05.4]} 9... d5 {[%clk 0:03:02.6]}
10. Qe1 {[%clk 0:03:04.8]} 10... e5 {[%clk 0:02:54.1]} 11. Nxc6 {[%clk
0:03:04.3]} 11... bxc6 {[%clk 0:02:54.2]} 12. exd5 {[%clk 0:03:04.6]} 12... cxd5
{[%clk 0:02:54]} 13. Bg5 {[%clk 0:03:02.2]} 13... Be6 {[%clk 0:02:35]} 14. Bc4
{[%clk 0:03:00.4]} 14... d4 {[%clk 0:02:10.7]} 15. Bxe6 {[%clk 0:02:51.2]} 15...
fxe6 {[%clk 0:02:11.6]} 16. Qxe5 {[%clk 0:02:48.6]} 16... Nd5 {[%clk 0:02:03.3]}
17. Qxe6+ {[%clk 0:02:48.2]} 1-0

[Event "*** Titled Tuesday Blitz"]
[Site "Chess.com"]
[Date "2020.04.21"]
[Round "7"]
[White "littleozy"]
[Black "Tashik"]
[Result "0-1"]
[WhiteElo "2405"]
[BlackElo "2549"]
[TimeControl "180+1"]
[EndTime "11:17:41 PDT"]
[Termination "Tashik won by resignation"]

1. d4 {[%clk 0:03:00]} 1... Nf6 {[%clk 0:02:59.6]} 2. Nc3 {[%clk 0:02:55.9]}
2... d5 {[%clk 0:02:59]} 3. Bg5 {[%clk 0:02:55.4]} 3... Nbd7 {[%clk 0:02:56.2]}
4. f3 {[%clk 0:02:54.2]} 4... c5 {[%clk 0:02:41.5]} 5. dxc5 {[%clk 0:02:40.9]}
5... e6 {[%clk 0:02:41.5]} 6. e4 {[%clk 0:02:36.3]} 6... Bxc5 {[%clk 0:02:31.8]}
7. exd5 {[%clk 0:02:14.1]} 7... Qb6 {[%clk 0:02:26.7]} 8. Nge2 {[%clk
0:01:59.2]} 8... Bf2+ {[%clk 0:02:19]} 9. Kd2 {[%clk 0:01:58.6]} 9... h6 {[%clk
0:02:08.7]} 10. Na4 {[%clk 0:01:41.3]} 10... Qa5+ {[%clk 0:02:03.6]} 0-1

[Event "*** Titled Tuesday Blitz"]
[Site "Chess.com"]
[Date "2020.04.21"]
[Round "7"]
[White "Lagmantr"]
[Black "EddieMarsalla"]
[Result "1-0"]
[WhiteElo "2720"]
[BlackElo "2538"]
[TimeControl "180+1"]
[EndTime "11:17:45 PDT"]
[Termination "Lagmantr won by resignation"]

1. e4 {[%clk 0:03:00.9]} 1... c6 {[%clk 0:02:59.1]} 2. d4 {[%clk 0:03:00.5]}
2... d5 {[%clk 0:02:59.7]} 3. Nc3 {[%clk 0:03:00.7]} 3... dxe4 {[%clk
0:02:58.9]} 4. Nxe4 {[%clk 0:03:01.6]} 4... Nf6 {[%clk 0:02:59.3]} 5. Nxf6+
{[%clk 0:03:01.6]} 5... exf6 {[%clk 0:03:00.2]} 6. c3 {[%clk 0:03:02.5]} 6...
Bd6 {[%clk 0:02:59.6]} 7. Bd3 {[%clk 0:03:03]} 7... Be6 {[%clk 0:02:59.7]} 8.
Qc2 {[%clk 0:03:02.8]} 8... Qc7 {[%clk 0:02:59.8]} 9. Ne2 {[%clk 0:03:02]} 9...
Nd7 {[%clk 0:02:59.8]} 10. Be3 {[%clk 0:02:57.6]} 10... g6 {[%clk 0:02:53.9]}
11. O-O-O {[%clk 0:02:55.9]} 11... Qa5 {[%clk 0:02:14]} 12. a3 {[%clk
0:02:46.6]} 12... O-O-O {[%clk 0:01:53.5]} 13. c4 {[%clk 0:02:42.8]} 13... Nf8
{[%clk 0:01:36.7]} 14. d5 {[%clk 0:02:37.3]} 14... Bd7 {[%clk 0:01:34.7]} 15. c5
{[%clk 0:02:37.1]} 15... Bb8 {[%clk 0:01:31.3]} 16. Bd2 {[%clk 0:02:32.4]} 16...
Qc7 {[%clk 0:01:19.9]} 17. d6 {[%clk 0:02:32.3]} 1-0

[Event "*** Titled Tuesday Blitz"]
[Site "Chess.com"]
[Date "2020.04.21"]
[Round "7"]
[White "Bulldog167"]
[Black "Saxar85"]
[Result "1-0"]
[WhiteElo "2784"]
[BlackElo "2604"]
[TimeControl "180+1"]
[EndTime "11:17:50 PDT"]
[Termination "Bulldog167 won by resignation"]

1. d4 {[%clk 0:03:00.9]} 1... g6 {[%clk 0:02:58.5]} 2. c4 {[%clk 0:03:01.3]}
2... Bg7 {[%clk 0:02:57.5]} 3. e4 {[%clk 0:03:01.8]} 3... d6 {[%clk 0:02:54.2]}
4. Nc3 {[%clk 0:03:02]} 4... Nc6 {[%clk 0:02:53.7]} 5. Nge2 {[%clk 0:03:01.8]}
5... Nf6 {[%clk 0:02:51.5]} 6. f3 {[%clk 0:02:58.9]} 6... O-O {[%clk 0:02:51.1]}
7. Be3 {[%clk 0:02:58.6]} 7... a6 {[%clk 0:02:50.6]} 8. Qd2 {[%clk 0:02:58.6]}
8... Na5 {[%clk 0:02:50.2]} 9. Nc1 {[%clk 0:02:58.3]} 9... Bd7 {[%clk
0:02:44.6]} 10. Nb3 {[%clk 0:02:58]} 10... Nxb3 {[%clk 0:02:41]} 11. axb3 {[%clk
0:02:58.9]} 11... b5 {[%clk 0:02:37.8]} 12. Be2 {[%clk 0:02:50.2]} 12... e5
{[%clk 0:02:26.7]} 13. d5 {[%clk 0:02:44.8]} 13... c5 {[%clk 0:02:26.1]} 14.
dxc6 {[%clk 0:02:41.7]} 14... Bxc6 {[%clk 0:02:25.9]} 15. O-O {[%clk 0:02:40.3]}
15... b4 {[%clk 0:02:16.1]} 16. Na4 {[%clk 0:02:40]} 16... Nh5 {[%clk
0:02:05.5]} 17. Rfd1 {[%clk 0:02:28.3]} 17... Qh4 {[%clk 0:01:46.1]} 18. Bg5
{[%clk 0:02:21.3]} 1-0

[Event "*** Titled Tuesday Blitz"]
[Site "Chess.com"]
[Date "2020.04.21"]
[Round "7"]
[White "orrbaverlekszarnyon"]
[Black "Andrii_Prydun"]
[Result "0-1"]
[WhiteElo "2182"]
[BlackElo "2326"]
[TimeControl "180+1"]
[EndTime "11:17:55 PDT"]
[Termination "Andrii_Prydun won by resignation"]

1. e4 {[%clk 0:03:00.9]} 1... Nf6 {[%clk 0:02:58.1]} 2. e5 {[%clk 0:03:00.5]}
2... Nd5 {[%clk 0:02:57.7]} 3. c4 {[%clk 0:03:01.4]} 3... Nb6 {[%clk 0:02:57]}
4. a4 {[%clk 0:03:02.3]} 4... d6 {[%clk 0:02:49.1]} 5. a5 {[%clk 0:03:02.4]}
5... N6d7 {[%clk 0:02:48]} 6. exd6 {[%clk 0:03:03.3]} 6... cxd6 {[%clk
0:02:46.5]} 7. d4 {[%clk 0:03:04.2]} 7... g6 {[%clk 0:02:45.2]} 8. Nf3 {[%clk
0:03:03.6]} 8... Bg7 {[%clk 0:02:42.7]} 9. Nc3 {[%clk 0:03:03]} 9... O-O {[%clk
0:02:42.4]} 10. Be2 {[%clk 0:03:02.6]} 10... Nc6 {[%clk 0:02:41.4]} 11. a6
{[%clk 0:03:02.4]} 11... bxa6 {[%clk 0:02:40.8]} 12. d5 {[%clk 0:03:02.8]} 12...
Nce5 {[%clk 0:02:39.5]} 13. O-O {[%clk 0:03:02.8]} 13... Nxf3+ {[%clk
0:02:36.9]} 14. Bxf3 {[%clk 0:03:03.7]} 14... Nc5 {[%clk 0:02:30.2]} 15. Be3
{[%clk 0:03:01.7]} 15... Qc7 {[%clk 0:02:27.8]} 16. Bd4 {[%clk 0:02:58.8]} 16...
Rb8 {[%clk 0:02:25.6]} 17. Bxg7 {[%clk 0:02:58.1]} 17... Kxg7 {[%clk 0:02:25.2]}
18. Ra2 {[%clk 0:02:42.9]} 18... Rb4 {[%clk 0:02:17.7]} 19. Qd4+ {[%clk
0:02:35.7]} 19... Kg8 {[%clk 0:02:17.2]} 20. Rc1 {[%clk 0:02:30.4]} 20... Bf5
{[%clk 0:02:15.2]} 21. Ne4 {[%clk 0:02:27]} 21... Nb3 {[%clk 0:02:07.8]} 22. Qc3
{[%clk 0:02:20.6]} 22... Nxc1 {[%clk 0:02:07.6]} 23. Qxc1 {[%clk 0:02:21.5]}
23... Rxc4 {[%clk 0:02:07.8]} 24. Nc3 {[%clk 0:02:17]} 24... Rb8 {[%clk
0:02:03.1]} 25. h4 {[%clk 0:02:10.6]} 25... Rxh4 {[%clk 0:02:01]} 26. Qg5 {[%clk
0:02:08.7]} 0-1

[Event "*** Titled Tuesday Blitz"]
[Site "Chess.com"]
[Date "2020.04.21"]
[Round "7"]
[White "praveenb2002"]
[Black "lukas_111111"]
[Result "1-0"]
[WhiteElo "2722"]
[BlackElo "2542"]
[TimeControl "180+1"]
[EndTime "11:18:01 PDT"]
[Termination "praveenb2002 won by resignation"]

1. e4 {[%clk 0:03:00.9]} 1... e6 {[%clk 0:02:59.6]} 2. d4 {[%clk 0:03:00.6]}
2... d5 {[%clk 0:03:00.2]} 3. Nc3 {[%clk 0:03:01]} 3... Bb4 {[%clk 0:03:00.2]}
4. e5 {[%clk 0:03:00.2]} 4... c5 {[%clk 0:03:00.6]} 5. a3 {[%clk 0:03:00.7]}
5... Bxc3+ {[%clk 0:03:01]} 6. bxc3 {[%clk 0:03:01.4]} 6... Qc7 {[%clk
0:03:01.5]} 7. Qg4 {[%clk 0:02:58.8]} 7... f6 {[%clk 0:03:01.8]} 8. Bb5+ {[%clk
0:02:32.9]} 8... Kf8 {[%clk 0:03:01.3]} 9. a4 {[%clk 0:02:11.7]} 9... c4 {[%clk
0:02:55.4]} 10. Ba3+ {[%clk 0:02:09.4]} 10... Kf7 {[%clk 0:02:55.2]} 11. Bd6
{[%clk 0:02:02.9]} 11... Qd8 {[%clk 0:02:55]} 12. a5 {[%clk 0:01:58.3]} 12...
Nc6 {[%clk 0:02:52.1]} 13. a6 {[%clk 0:01:57]} 13... Qb6 {[%clk 0:02:46.6]} 14.
Bxc6 {[%clk 0:01:37.9]} 14... Qb2 {[%clk 0:02:21.2]} 15. axb7 {[%clk 0:01:16.9]}
15... Qxc3+ {[%clk 0:02:18.1]} 16. Ke2 {[%clk 0:01:17]} 16... Qxc2+ {[%clk
0:02:16.7]} 17. Kf1 {[%clk 0:01:17.3]} 1-0

[Event "*** Titled Tuesday Blitz"]
[Site "Chess.com"]
[Date "2020.04.21"]
[Round "7"]
[White "Alopekos"]
[Black "SHIVACalypso"]
[Result "1-0"]
[WhiteElo "2372"]
[BlackElo "2225"]
[TimeControl "180+1"]
[EndTime "11:18:31 PDT"]
[Termination "Alopekos won by resignation"]

1. e4 {[%clk 0:03:00.9]} 1... e6 {[%clk 0:03:00.1]} 2. d4 {[%clk 0:03:00.6]}
2... d5 {[%clk 0:02:59.8]} 3. Nc3 {[%clk 0:03:01.5]} 3... Nf6 {[%clk 0:02:58.9]}
4. e5 {[%clk 0:03:01.8]} 4... Nfd7 {[%clk 0:02:58.6]} 5. Qg4 {[%clk 0:03:01.2]}
5... c5 {[%clk 0:02:58.3]} 6. dxc5 {[%clk 0:03:02.1]} 6... Nc6 {[%clk
0:02:54.2]} 7. Nf3 {[%clk 0:03:01.5]} 7... Ndxe5 {[%clk 0:02:46.4]} 8. Nxe5
{[%clk 0:03:02.4]} 8... Nxe5 {[%clk 0:02:46.6]} 9. Qg3 {[%clk 0:03:02.4]} 9...
Ng6 {[%clk 0:02:29.2]} 10. Nb5 {[%clk 0:03:00.2]} 10... e5 {[%clk 0:02:22.2]}
11. h4 {[%clk 0:03:00.3]} 11... h5 {[%clk 0:02:07.8]} 12. Bd3 {[%clk 0:02:58.6]}
12... Be6 {[%clk 0:01:11.9]} 13. Bxg6 {[%clk 0:02:55.4]} 13... fxg6 {[%clk
0:01:12.8]} 14. Qxe5 {[%clk 0:02:51.1]} 14... Kf7 {[%clk 0:00:43.4]} 15. Nc7
{[%clk 0:02:49.1]} 1-0

[Event "*** Titled Tuesday Blitz"]
[Site "Chess.com"]
[Date "2020.04.21"]
[Round "7"]
[White "CookiesAndIceCream"]
[Black "Funkmaus"]
[Result "1-0"]
[WhiteElo "2371"]
[BlackElo "2200"]
[TimeControl "180+1"]
[EndTime "11:18:36 PDT"]
[Termination "CookiesAndIceCream won by resignation"]

1. e4 {[%clk 0:03:00.9]} 1... c6 {[%clk 0:02:58.6]} 2. d4 {[%clk 0:03:00.5]}
2... d5 {[%clk 0:02:59.5]} 3. e5 {[%clk 0:03:00.2]} 3... Bf5 {[%clk 0:02:59]} 4.
Nf3 {[%clk 0:03:00.3]} 4... e6 {[%clk 0:02:58.6]} 5. Be2 {[%clk 0:03:00.9]} 5...
h5 {[%clk 0:02:57.2]} 6. O-O {[%clk 0:02:58.6]} 6... c5 {[%clk 0:02:57.2]} 7. c4
{[%clk 0:02:56.2]} 7... Nc6 {[%clk 0:02:56.1]} 8. Nc3 {[%clk 0:02:49.9]} 8...
cxd4 {[%clk 0:02:51.6]} 9. Nxd4 {[%clk 0:02:47.6]} 9... Nxd4 {[%clk 0:02:52.1]}
10. Qxd4 {[%clk 0:02:47.3]} 10... dxc4 {[%clk 0:02:48.3]} 11. Qxc4 {[%clk
0:02:44.2]} 11... Ne7 {[%clk 0:02:47.9]} 12. Rd1 {[%clk 0:01:28.9]} 12... Qc8
{[%clk 0:02:44.9]} 13. Qa4+ {[%clk 0:01:16.5]} 13... Nc6 {[%clk 0:02:43.4]} 14.
Bg5 {[%clk 0:01:15.5]} 14... Be7 {[%clk 0:02:24.4]} 15. Bxe7 {[%clk 0:01:14.9]}
15... Kxe7 {[%clk 0:02:25.2]} 16. Qa3+ {[%clk 0:01:10.8]} 16... Ke8 {[%clk
0:02:18.2]} 17. Nb5 {[%clk 0:01:11.1]} 17... Qb8 {[%clk 0:02:03]} 18. Nd6+
{[%clk 0:01:10.1]} 18... Kf8 {[%clk 0:02:01.3]} 19. Nxf5+ {[%clk 0:01:08.8]} 1-0